[Event "Titled Tuesday Blitz September 27 Early 2022"]
[White "Meshkovs, Nikita"]
[Black "Kollars, Dmitrij"]
[WhiteFideId "11602740"]
[BlackFideId "12909572"]
[WhiteElo "2506"]
[BlackElo "2584"]
[Result "0-1"]
[Round "08"]
[TimeControl "180+1"]
[Date "2022.09.27"]
[WhiteClock "0:00:01"]
[BlackClock "0:00:16"]

1. c4 {[%clk 0:03:00]}  Nf6 {[%clk 0:02:58]} 2. Nc3 {[%clk 0:02:59]}  e6 {[%clk 0:02:57]} 3. d4 {[%clk 0:02:59]}  Bb4 {[%clk 0:02:53]} 4. e3 {[%clk 0:02:55]}  c5 {[%clk 0:02:50]} 5. Nf3 {[%clk 0:02:50]}  d5 {[%clk 0:02:46]} 6. Bd3 {[%clk 0:02:48]}  O-O {[%clk 0:02:45]} 7. O-O {[%clk 0:02:43]}  Nc6 {[%clk 0:02:45]} 8. a3 {[%clk 0:02:39]}  Bxc3 {[%clk 0:02:44]} 9. bxc3 {[%clk 0:02:40]}  Re8 {[%clk 0:02:45]} 10. Bb2 {[%clk 0:02:36]}  Na5 {[%clk 0:02:36]} 11. Nd2 {[%clk 0:02:33]}  Qc7 {[%clk 0:02:34]} 12. cxd5 {[%clk 0:02:21]}  exd5 {[%clk 0:02:35]} 13. Qf3 {[%clk 0:02:21]}  Bg4 {[%clk 0:02:29]} 14. Qg3 {[%clk 0:02:20]}  Qxg3 {[%clk 0:02:27]} 15. hxg3 {[%clk 0:02:21]}  c4 {[%clk 0:02:25]} 16. Bc2 {[%clk 0:02:22]}  Bh5 {[%clk 0:02:22]} 17. Rae1 {[%clk 0:02:03]}  Bg6 {[%clk 0:02:20]} 18. Bxg6 {[%clk 0:02:03]}  hxg6 {[%clk 0:02:21]} 19. f3 {[%clk 0:02:03]}  b5 {[%clk 0:02:18]} 20. Rf2 {[%clk 0:01:57]}  Re6 {[%clk 0:02:17]} 21. Rfe2 {[%clk 0:01:57]}  Nd7 {[%clk 0:02:01]} 22. e4 {[%clk 0:01:53]}  Rae8 {[%clk 0:01:56]} 23. Kf2 {[%clk 0:01:53]}  Nb6 {[%clk 0:01:56]} 24. Re3 {[%clk 0:01:42]}  f6 {[%clk 0:01:53]} 25. g4 {[%clk 0:01:36]}  Nb7 {[%clk 0:01:49]} 26. Bc1 {[%clk 0:01:12]}  Nd6 {[%clk 0:01:23]} 27. e5 {[%clk 0:00:41]}  fxe5 {[%clk 0:01:17]} 28. Rxe5 {[%clk 0:00:42]}  Kf7 {[%clk 0:00:56]} 29. f4 {[%clk 0:00:37]}  Na4 {[%clk 0:00:55]} 30. R1e3 {[%clk 0:00:38]}  Rxe5 {[%clk 0:00:37]} 31. fxe5 {[%clk 0:00:28]}  Nb7 {[%clk 0:00:33]} 32. Ke2 {[%clk 0:00:21]}  Nd8 {[%clk 0:00:33]} 33. Rh3 {[%clk 0:00:17]}  Ne6 {[%clk 0:00:33]} 34. Kd1 {[%clk 0:00:17]}  g5 {[%clk 0:00:27]} 35. Kc2 {[%clk 0:00:16]}  Kg6 {[%clk 0:00:27]} 36. Nf3 {[%clk 0:00:16]}  a5 {[%clk 0:00:22]} 37. Rh5 {[%clk 0:00:16]}  b4 {[%clk 0:00:22]} 38. axb4 {[%clk 0:00:16]}  axb4 {[%clk 0:00:23]} 39. cxb4 {[%clk 0:00:15]}  Rb8 {[%clk 0:00:23]} 40. Bxg5 {[%clk 0:00:15]}  Rxb4 {[%clk 0:00:22]} 41. Bc1 {[%clk 0:00:13]}  Rb3 {[%clk 0:00:22]} 42. Rh8 {[%clk 0:00:07]}  Rc3+ {[%clk 0:00:21]} 43. Kd1 {[%clk 0:00:07]}  Rd3+ {[%clk 0:00:20]} 44. Ke2 {[%clk 0:00:08]}  Nxd4+ {[%clk 0:00:20]} 45. Nxd4 {[%clk 0:00:08]}  Rxd4 {[%clk 0:00:21]} 46. Be3 {[%clk 0:00:05]}  Nc3+ {[%clk 0:00:20]} 47. Kf3 {[%clk 0:00:05]}  Rd3 {[%clk 0:00:19]} 48. Rd8 {[%clk 0:00:01]}  Nd1 {[%clk 0:00:17]} 49. Kf4 {[%clk 0:00:01]}  Nxe3 {[%clk 0:00:16]} 0-1


[Site "https://www.chess.com"]

[Event "Titled Tuesday Blitz September 27 Early 2022"]
[White "Milikow, Yoav"]
[Black "Bacrot, Etienne"]
[WhiteFideId "2822237"]
[BlackFideId "605506"]
[WhiteElo "2341"]
[BlackElo "2666"]
[Result "0-1"]
[Round "08"]
[TimeControl "180+1"]
[Date "2022.09.27"]
[WhiteClock "0:00:22"]
[BlackClock "0:00:17"]

1. d4 {[%clk 0:03:00]}  d5 {[%clk 0:02:59]} 2. c4 {[%clk 0:02:59]}  e6 {[%clk 0:02:59]} 3. Nc3 {[%clk 0:02:56]}  Bb4 {[%clk 0:02:57]} 4. cxd5 {[%clk 0:02:38]}  exd5 {[%clk 0:02:57]} 5. Bf4 {[%clk 0:02:38]}  Ne7 {[%clk 0:02:55]} 6. e3 {[%clk 0:02:36]}  O-O {[%clk 0:02:54]} 7. Bd3 {[%clk 0:02:33]}  Bf5 {[%clk 0:02:52]} 8. Ne2 {[%clk 0:02:26]}  c6 {[%clk 0:02:46]} 9. O-O {[%clk 0:02:25]}  Bd6 {[%clk 0:02:46]} 10. Bxd6 {[%clk 0:02:16]}  Qxd6 {[%clk 0:02:45]} 11. f3 {[%clk 0:02:16]}  Bxd3 {[%clk 0:02:34]} 12. Qxd3 {[%clk 0:02:17]}  Na6 {[%clk 0:02:32]} 13. Ng3 {[%clk 0:02:11]}  Rad8 {[%clk 0:02:27]} 14. Rfd1 {[%clk 0:02:09]}  Nc7 {[%clk 0:02:21]} 15. Rac1 {[%clk 0:02:08]}  Ne6 {[%clk 0:02:16]} 16. Na4 {[%clk 0:02:02]}  f5 {[%clk 0:02:12]} 17. f4 {[%clk 0:01:49]}  g5 {[%clk 0:02:11]} 18. fxg5 {[%clk 0:01:42]}  Nxg5 {[%clk 0:02:00]} 19. Nc5 {[%clk 0:01:37]}  Rb8 {[%clk 0:01:50]} 20. Rf1 {[%clk 0:01:24]}  b6 {[%clk 0:01:34]} 21. Na6 {[%clk 0:01:14]}  Rbe8 {[%clk 0:01:34]} 22. Nxf5 {[%clk 0:01:10]}  Nxf5 {[%clk 0:01:19]} 23. Rxf5 {[%clk 0:01:11]}  Nh3+ {[%clk 0:01:09]} 24. Kh1 {[%clk 0:00:56]}  Nf2+ {[%clk 0:01:06]} 25. Rxf2 {[%clk 0:00:57]}  Rxf2 {[%clk 0:01:06]} 26. a3 {[%clk 0:00:45]}  Ref8 {[%clk 0:00:43]} 27. Nb4 {[%clk 0:00:37]}  Qf6 {[%clk 0:00:37]} 28. Kg1 {[%clk 0:00:24]}  Rxg2+ {[%clk 0:00:19]} 29. Kxg2 {[%clk 0:00:22]}  Qf3+ {[%clk 0:00:19]} 30. Kg1 {[%clk 0:00:22]}  Kh8 {[%clk 0:00:17]} 0-1


[Site "https://www.chess.com"]

[Event "Titled Tuesday Blitz September 27 Early 2022"]
[White "Mirzoev, Azer"]
[Black "Becerra, Juan David"]
[WhiteFideId "13400304"]
[BlackFideId "4404998"]
[WhiteElo "2525"]
[BlackElo "2278"]
[Result "1-0"]
[Round "08"]
[TimeControl "180+1"]
[Date "2022.09.27"]
[WhiteClock "0:01:29"]
[BlackClock "0:00:05"]

1. e4 {[%clk 0:03:00]}  e5 {[%clk 0:02:58]} 2. Nc3 {[%clk 0:03:00]}  Nf6 {[%clk 0:02:49]} 3. Bc4 {[%clk 0:02:59]}  Bc5 {[%clk 0:02:37]} 4. d3 {[%clk 0:02:58]}  c6 {[%clk 0:02:37]} 5. Bb3 {[%clk 0:02:57]}  d6 {[%clk 0:02:34]} 6. h3 {[%clk 0:02:56]}  h6 {[%clk 0:02:30]} 7. Qf3 {[%clk 0:02:56]}  Be6 {[%clk 0:02:24]} 8. Nge2 {[%clk 0:02:55]}  Nbd7 {[%clk 0:02:23]} 9. Ng3 {[%clk 0:02:55]}  b5 {[%clk 0:02:11]} 10. Nf5 {[%clk 0:02:53]}  Kf8 {[%clk 0:01:59]} 11. O-O {[%clk 0:02:42]}  a5 {[%clk 0:01:58]} 12. a4 {[%clk 0:02:41]}  b4 {[%clk 0:01:49]} 13. Ne2 {[%clk 0:02:41]}  Bxb3 {[%clk 0:01:35]} 14. cxb3 {[%clk 0:02:41]}  Ng8 {[%clk 0:01:35]} 15. d4 {[%clk 0:02:39]}  exd4 {[%clk 0:01:33]} 16. Nfxd4 {[%clk 0:02:33]}  Ne5 {[%clk 0:01:31]} 17. Qg3 {[%clk 0:02:30]}  Ne7 {[%clk 0:01:20]} 18. Be3 {[%clk 0:02:25]}  Nd7 {[%clk 0:00:39]} 19. Rac1 {[%clk 0:02:21]}  Rc8 {[%clk 0:00:31]} 20. Rfd1 {[%clk 0:02:19]}  h5 {[%clk 0:00:25]} 21. Nf4 {[%clk 0:02:11]}  Kg8 {[%clk 0:00:23]} 22. Qf3 {[%clk 0:02:09]}  Ne5 {[%clk 0:00:22]} 23. Qe2 {[%clk 0:02:09]}  g6 {[%clk 0:00:19]} 24. Nde6 {[%clk 0:02:04]}  fxe6 {[%clk 0:00:19]} 25. Bxc5 {[%clk 0:02:01]}  Qf8 {[%clk 0:00:17]} 26. Nxe6 {[%clk 0:01:57]}  Qf6 {[%clk 0:00:17]} 27. Rxd6 {[%clk 0:01:55]}  Nf7 {[%clk 0:00:17]} 28. e5 {[%clk 0:01:48]}  Qxe5 {[%clk 0:00:13]} 29. Qxe5 {[%clk 0:01:47]}  Nxe5 {[%clk 0:00:14]} 30. Ng5 {[%clk 0:01:44]}  Nf5 {[%clk 0:00:08]} 31. Re6 {[%clk 0:01:42]}  Nd3 {[%clk 0:00:06]} 32. Rxg6+ {[%clk 0:01:41]}  Ng7 {[%clk 0:00:06]} 33. Bd4 {[%clk 0:01:35]}  Nxc1 {[%clk 0:00:06]} 34. Rxg7+ {[%clk 0:01:35]}  Kf8 {[%clk 0:00:06]} 35. Ne6+ {[%clk 0:01:30]}  Ke8 {[%clk 0:00:05]} 36. Bc5 {[%clk 0:01:29]} 1-0


[Site "https://www.chess.com"]

[Event "Titled Tuesday Blitz September 27 Early 2022"]
[White "Nakamura, Hikaru"]
[Black "Wojtaszek, Radoslaw"]
[WhiteFideId "2016192"]
[BlackFideId "1118358"]
[WhiteElo "2850"]
[BlackElo "2606"]
[Result "1-0"]
[Round "08"]
[TimeControl "180+1"]
[Date "2022.09.27"]
[WhiteClock "0:00:38"]
[BlackClock "0:00:04"]

1. Nf3 {[%clk 0:03:00]}  c5 {[%clk 0:02:59]} 2. e4 {[%clk 0:02:59]}  d6 {[%clk 0:02:59]} 3. c3 {[%clk 0:02:59]}  Nf6 {[%clk 0:02:59]} 4. Bd3 {[%clk 0:02:59]}  g6 {[%clk 0:02:55]} 5. h3 {[%clk 0:02:59]}  Bg7 {[%clk 0:02:53]} 6. Bc2 {[%clk 0:03:00]}  e5 {[%clk 0:02:53]} 7. O-O {[%clk 0:02:58]}  O-O {[%clk 0:02:52]} 8. Re1 {[%clk 0:02:59]}  Nc6 {[%clk 0:02:51]} 9. d3 {[%clk 0:02:56]}  h6 {[%clk 0:02:50]} 10. a3 {[%clk 0:02:56]}  Be6 {[%clk 0:02:41]} 11. b4 {[%clk 0:02:56]}  b5 {[%clk 0:02:41]} 12. Nbd2 {[%clk 0:02:33]}  a5 {[%clk 0:02:35]} 13. bxc5 {[%clk 0:02:28]}  dxc5 {[%clk 0:02:36]} 14. a4 {[%clk 0:02:29]}  b4 {[%clk 0:02:35]} 15. Bb2 {[%clk 0:02:29]}  Ne8 {[%clk 0:02:04]} 16. Qe2 {[%clk 0:01:50]}  Nd6 {[%clk 0:01:57]} 17. Bb3 {[%clk 0:01:49]}  Bxb3 {[%clk 0:01:32]} 18. Nxb3 {[%clk 0:01:50]}  Qb6 {[%clk 0:01:32]} 19. Rab1 {[%clk 0:01:41]}  Rfd8 {[%clk 0:01:17]} 20. Qe3 {[%clk 0:01:33]}  Nb7 {[%clk 0:01:12]} 21. Nfd2 {[%clk 0:01:33]}  bxc3 {[%clk 0:01:00]} 22. Bxc3 {[%clk 0:01:32]}  Nb4 {[%clk 0:00:59]} 23. Bxb4 {[%clk 0:01:22]}  axb4 {[%clk 0:00:59]} 24. Nc4 {[%clk 0:01:23]}  Qc7 {[%clk 0:00:36]} 25. a5 {[%clk 0:01:22]}  Ra6 {[%clk 0:00:33]} 26. Rec1 {[%clk 0:01:18]}  Bf8 {[%clk 0:00:33]} 27. Qe2 {[%clk 0:01:10]}  Re6 {[%clk 0:00:31]} 28. Ra1 {[%clk 0:01:09]}  Ra8 {[%clk 0:00:30]} 29. Ra2 {[%clk 0:01:08]}  Raa6 {[%clk 0:00:29]} 30. Rca1 {[%clk 0:01:04]}  Nd6 {[%clk 0:00:25]} 31. Nxd6 {[%clk 0:01:00]}  Rexd6 {[%clk 0:00:22]} 32. Rc2 {[%clk 0:00:57]}  Rdc6 {[%clk 0:00:18]} 33. Rac1 {[%clk 0:00:57]}  Ra8 {[%clk 0:00:18]} 34. Qe3 {[%clk 0:00:52]}  Rc8 {[%clk 0:00:18]} 35. Ra2 {[%clk 0:00:50]}  h5 {[%clk 0:00:18]} 36. a6 {[%clk 0:00:48]}  Qa7 {[%clk 0:00:15]} 37. Rca1 {[%clk 0:00:48]}  R8c7 {[%clk 0:00:15]} 38. Qg5 {[%clk 0:00:45]}  c4 {[%clk 0:00:14]} 39. dxc4 {[%clk 0:00:42]}  Rxc4 {[%clk 0:00:15]} 40. Qxe5 {[%clk 0:00:41]}  Rc2 {[%clk 0:00:14]} 41. Rxc2 {[%clk 0:00:39]}  Rxc2 {[%clk 0:00:15]} 42. Qd4 {[%clk 0:00:40]}  Qa8 {[%clk 0:00:04]} 43. a7 {[%clk 0:00:38]}  Bg7 {[%clk 0:00:04]} 44. Qd5 {[%clk 0:00:38]} 1-0


[Site "https://www.chess.com"]

[Event "Titled Tuesday Blitz September 27 Early 2022"]
[White "Navarrete Mendez, Gonzalo Alberto"]
[Black "Buscar, Michael"]
[WhiteFideId "5106850"]
[BlackFideId "2603616"]
[WhiteElo "2261"]
[BlackElo "2010"]
[Result "1-0"]
[Round "08"]
[TimeControl "180+1"]
[Date "2022.09.27"]
[WhiteClock "0:01:03"]
[BlackClock "0:01:11"]

1. e4 {[%clk 0:03:00]}  c5 {[%clk 0:02:54]} 2. Nf3 {[%clk 0:03:00]}  Nc6 {[%clk 0:02:53]} 3. Nc3 {[%clk 0:03:00]}  Nf6 {[%clk 0:02:53]} 4. d4 {[%clk 0:02:58]}  cxd4 {[%clk 0:02:53]} 5. Nxd4 {[%clk 0:02:59]}  e5 {[%clk 0:02:53]} 6. Ndb5 {[%clk 0:02:59]}  h6 {[%clk 0:02:53]} 7. Nd5 {[%clk 0:02:52]}  Nxd5 {[%clk 0:02:52]} 8. exd5 {[%clk 0:02:53]}  a6 {[%clk 0:02:53]} 9. Nc3 {[%clk 0:02:44]}  Nb8 {[%clk 0:02:47]} 10. d6 {[%clk 0:02:19]}  Qb6 {[%clk 0:02:37]} 11. Ne4 {[%clk 0:02:12]}  Qb4+ {[%clk 0:02:21]} 12. Nc3 {[%clk 0:02:11]}  Qxd6 {[%clk 0:02:21]} 13. Nd5 {[%clk 0:02:06]}  Be7 {[%clk 0:02:14]} 14. Be3 {[%clk 0:02:05]}  O-O {[%clk 0:02:09]} 15. Nb6 {[%clk 0:01:58]}  Qb4+ {[%clk 0:01:41]} 16. c3 {[%clk 0:01:47]}  Qxb2 {[%clk 0:01:41]} 17. Nxa8 {[%clk 0:01:41]}  Qxc3+ {[%clk 0:01:36]} 18. Bd2 {[%clk 0:01:40]}  Qc6 {[%clk 0:01:34]} 19. Rc1 {[%clk 0:01:29]}  Qd5 {[%clk 0:01:29]} 20. Nb6 {[%clk 0:01:19]}  Qe4+ {[%clk 0:01:24]} 21. Qe2 {[%clk 0:01:19]}  Qxe2+ {[%clk 0:01:18]} 22. Bxe2 {[%clk 0:01:20]}  Nc6 {[%clk 0:01:18]} 23. O-O {[%clk 0:01:13]}  d6 {[%clk 0:01:14]} 24. Nxc8 {[%clk 0:01:07]}  Rxc8 {[%clk 0:01:13]} 25. Bf3 {[%clk 0:01:04]}  f5 {[%clk 0:01:11]} 26. Bd5+ {[%clk 0:01:03]}  Kf8 {[%clk 0:01:11]} 27. Be6 {[%clk 0:01:03]} 1-0


[Site "https://www.chess.com"]

[Event "Titled Tuesday Blitz September 27 Early 2022"]
[White "Ovezdurdyyeva, Jemal"]
[Black "Roque Sola, Gisela"]
[WhiteFideId "14001888"]
[BlackFideId "5120241"]
[WhiteElo "1946"]
[BlackElo "1845"]
[Result "0-1"]
[Round "08"]
[TimeControl "180+1"]
[Date "2022.09.27"]
[WhiteClock "0:00:17"]
[BlackClock "0:00:16"]

1. e4 {[%clk 0:03:00]}  c5 {[%clk 0:02:57]} 2. Nf3 {[%clk 0:03:00]}  Nc6 {[%clk 0:02:55]} 3. c3 {[%clk 0:03:00]}  d5 {[%clk 0:02:54]} 4. exd5 {[%clk 0:03:00]}  Qxd5 {[%clk 0:02:54]} 5. d4 {[%clk 0:03:01]}  cxd4 {[%clk 0:02:50]} 6. cxd4 {[%clk 0:03:00]}  e6 {[%clk 0:02:39]} 7. Nc3 {[%clk 0:02:59]}  Bb4 {[%clk 0:02:38]} 8. Be2 {[%clk 0:02:58]}  Nf6 {[%clk 0:02:35]} 9. O-O {[%clk 0:02:58]}  Qd8 {[%clk 0:02:27]} 10. Qb3 {[%clk 0:02:45]}  Bd6 {[%clk 0:02:18]} 11. Bg5 {[%clk 0:02:41]}  h6 {[%clk 0:02:17]} 12. Bh4 {[%clk 0:02:40]}  Be7 {[%clk 0:02:14]} 13. Rfd1 {[%clk 0:02:38]}  O-O {[%clk 0:02:13]} 14. Rac1 {[%clk 0:02:23]}  Qb6 {[%clk 0:02:06]} 15. Qc2 {[%clk 0:02:09]}  Nb4 {[%clk 0:02:02]} 16. Qb1 {[%clk 0:02:09]}  Nbd5 {[%clk 0:02:00]} 17. Nxd5 {[%clk 0:02:09]}  Nxd5 {[%clk 0:01:59]} 18. Bxe7 {[%clk 0:02:08]}  Nxe7 {[%clk 0:01:58]} 19. Ne5 {[%clk 0:02:06]}  Nd5 {[%clk 0:01:54]} 20. b3 {[%clk 0:01:58]}  Qd6 {[%clk 0:01:49]} 21. Qe4 {[%clk 0:01:55]}  Bd7 {[%clk 0:01:46]} 22. Bd3 {[%clk 0:01:51]}  f5 {[%clk 0:01:40]} 23. Qh4 {[%clk 0:01:40]}  Rac8 {[%clk 0:01:37]} 24. Bc4 {[%clk 0:01:38]}  b5 {[%clk 0:01:25]} 25. Bxd5 {[%clk 0:01:24]}  exd5 {[%clk 0:01:23]} 26. Qg3 {[%clk 0:01:15]}  f4 {[%clk 0:01:21]} 27. Qf3 {[%clk 0:01:12]}  Bf5 {[%clk 0:01:00]} 28. h3 {[%clk 0:01:00]}  Be4 {[%clk 0:00:59]} 29. Qe2 {[%clk 0:00:50]}  f3 {[%clk 0:00:53]} 30. gxf3 {[%clk 0:00:49]}  Bf5 {[%clk 0:00:46]} 31. Kh2 {[%clk 0:00:42]}  Qe6 {[%clk 0:00:37]} 32. Qf1 {[%clk 0:00:24]}  b4 {[%clk 0:00:26]} 33. Qg2 {[%clk 0:00:23]}  Rc3 {[%clk 0:00:24]} 34. Rg1 {[%clk 0:00:21]}  g5 {[%clk 0:00:20]} 35. f4 {[%clk 0:00:20]}  Rxh3+ {[%clk 0:00:19]} 36. Qxh3 {[%clk 0:00:17]}  Bxh3 {[%clk 0:00:20]} 37. fxg5 {[%clk 0:00:17]}  Rxf2+ {[%clk 0:00:20]} 38. Kg3 {[%clk 0:00:17]}  Rf5 {[%clk 0:00:19]} 39. gxh6 {[%clk 0:00:17]}  Rg5+ {[%clk 0:00:19]} 40. Kh2 {[%clk 0:00:17]}  Rxg1 {[%clk 0:00:18]} 41. Rxg1+ {[%clk 0:00:18]}  Kh7 {[%clk 0:00:19]} 42. Rg3 {[%clk 0:00:19]}  Bf5 {[%clk 0:00:18]} 43. Nf3 {[%clk 0:00:17]}  Qe2+ {[%clk 0:00:17]} 44. Kg1 {[%clk 0:00:17]}  Qd1+ {[%clk 0:00:16]} 45. Kg2 {[%clk 0:00:17]}  Be4 {[%clk 0:00:16]} 0-1


[Site "https://www.chess.com"]

[Event "Titled Tuesday Blitz September 27 Early 2022"]
[White "Papasimakopoulos, Alexandros"]
[Black "Yurovskykh, Oleksandr"]
[WhiteFideId "4244125"]
[BlackFideId "14134020"]
[WhiteElo "2357"]
[BlackElo "2303"]
[Result "1/2-1/2"]
[Round "08"]
[TimeControl "180+1"]
[Date "2022.09.27"]
[WhiteClock "0:00:07"]
[BlackClock "0:00:12"]

1. d4 {[%clk 0:03:00]}  d5 {[%clk 0:02:58]} 2. c4 {[%clk 0:02:54]}  dxc4 {[%clk 0:02:56]} 3. Nf3 {[%clk 0:02:54]}  Nf6 {[%clk 0:02:56]} 4. e3 {[%clk 0:02:54]}  e6 {[%clk 0:02:56]} 5. Bxc4 {[%clk 0:02:53]}  c5 {[%clk 0:02:57]} 6. O-O {[%clk 0:02:52]}  Nc6 {[%clk 0:02:57]} 7. a3 {[%clk 0:02:49]}  cxd4 {[%clk 0:02:57]} 8. exd4 {[%clk 0:02:49]}  Be7 {[%clk 0:02:58]} 9. Nc3 {[%clk 0:02:50]}  O-O {[%clk 0:02:58]} 10. Re1 {[%clk 0:02:50]}  b6 {[%clk 0:02:59]} 11. Bg5 {[%clk 0:02:47]}  Bb7 {[%clk 0:02:59]} 12. Rc1 {[%clk 0:02:46]}  Rc8 {[%clk 0:02:58]} 13. Qd3 {[%clk 0:02:43]}  Nd5 {[%clk 0:02:53]} 14. Bxe7 {[%clk 0:02:21]}  Ncxe7 {[%clk 0:02:51]} 15. Ba2 {[%clk 0:02:20]}  Nxc3 {[%clk 0:02:48]} 16. bxc3 {[%clk 0:02:19]}  Ng6 {[%clk 0:02:37]} 17. Bb1 {[%clk 0:02:05]}  Qc7 {[%clk 0:02:26]} 18. Ne5 {[%clk 0:02:01]}  Rfd8 {[%clk 0:02:25]} 19. h4 {[%clk 0:01:44]}  Nf8 {[%clk 0:02:17]} 20. h5 {[%clk 0:01:43]}  f6 {[%clk 0:01:54]} 21. Ng4 {[%clk 0:01:35]}  Qf4 {[%clk 0:01:53]} 22. f3 {[%clk 0:01:28]}  e5 {[%clk 0:01:40]} 23. Qe3 {[%clk 0:00:27]}  Qxe3+ {[%clk 0:01:31]} 24. Nxe3 {[%clk 0:00:27]}  exd4 {[%clk 0:01:05]} 25. cxd4 {[%clk 0:00:27]}  Rxc1 {[%clk 0:01:06]} 26. Rxc1 {[%clk 0:00:27]}  Rxd4 {[%clk 0:01:05]} 27. Ba2+ {[%clk 0:00:23]}  Kh8 {[%clk 0:01:04]} 28. Nf5 {[%clk 0:00:18]}  Rd2 {[%clk 0:00:56]} 29. Rc7 {[%clk 0:00:15]}  Rd7 {[%clk 0:00:52]} 30. Rc2 {[%clk 0:00:10]}  g6 {[%clk 0:00:50]} 31. Ne3 {[%clk 0:00:10]}  Kg7 {[%clk 0:00:45]} 32. Kh2 {[%clk 0:00:08]}  Re7 {[%clk 0:00:35]} 33. Rc3 {[%clk 0:00:07]}  f5 {[%clk 0:00:27]} 34. hxg6 {[%clk 0:00:04]}  hxg6 {[%clk 0:00:27]} 35. Nc4 {[%clk 0:00:03]}  Nd7 {[%clk 0:00:22]} 36. Nd6 {[%clk 0:00:03]}  Nc5 {[%clk 0:00:22]} 37. Nxb7 {[%clk 0:00:02]}  Rxb7 {[%clk 0:00:17]} 38. Re3 {[%clk 0:00:03]}  Kf6 {[%clk 0:00:17]} 39. f4 {[%clk 0:00:03]}  g5 {[%clk 0:00:17]} 40. fxg5+ {[%clk 0:00:03]}  Kxg5 {[%clk 0:00:18]} 41. Re8 {[%clk 0:00:03]}  Rh7+ {[%clk 0:00:18]} 42. Kg3 {[%clk 0:00:03]}  Ne4+ {[%clk 0:00:15]} 43. Kf3 {[%clk 0:00:03]}  Nf6 {[%clk 0:00:16]} 44. Re5 {[%clk 0:00:02]}  Rc7 {[%clk 0:00:14]} 45. Bb1 {[%clk 0:00:02]}  Rc3+ {[%clk 0:00:15]} 46. Kf2 {[%clk 0:00:03]}  Rc5 {[%clk 0:00:15]} 47. Rxc5 {[%clk 0:00:03]}  bxc5 {[%clk 0:00:16]} 48. Ke3 {[%clk 0:00:03]}  Nd5+ {[%clk 0:00:13]} 49. Kd3 {[%clk 0:00:03]}  Nf4+ {[%clk 0:00:14]} 50. Kc4 {[%clk 0:00:04]}  Nxg2 {[%clk 0:00:14]} 51. Kxc5 {[%clk 0:00:04]}  Ne3 {[%clk 0:00:10]} 52. Bd3 {[%clk 0:00:03]}  f4 {[%clk 0:00:10]} 53. Kc6 {[%clk 0:00:04]}  f3 {[%clk 0:00:09]} 54. Kb7 {[%clk 0:00:04]}  a5 {[%clk 0:00:09]} 55. Kb6 {[%clk 0:00:04]}  Kf4 {[%clk 0:00:09]} 56. Kxa5 {[%clk 0:00:05]}  Nd5 {[%clk 0:00:09]} 57. a4 {[%clk 0:00:05]}  Ke3 {[%clk 0:00:10]} 58. Bc4 {[%clk 0:00:05]}  Nc3 {[%clk 0:00:09]} 59. Kb4 {[%clk 0:00:05]}  Nxa4 {[%clk 0:00:09]} 60. Kxa4 {[%clk 0:00:05]}  Kd2 {[%clk 0:00:09]} 61. Bb5 {[%clk 0:00:06]}  f2 {[%clk 0:00:10]} 62. Ba6 {[%clk 0:00:06]}  Ke1 {[%clk 0:00:11]} 63. Bb5 {[%clk 0:00:07]}  f1=Q {[%clk 0:00:12]} 64. Bxf1 {[%clk 0:00:07]} 1/2-1/2


[Site "https://www.chess.com"]

[Event "Titled Tuesday Blitz September 27 Early 2022"]
[White "Perez Gormaz, Matias"]
[Black "Mladek, Richard"]
[WhiteFideId "3406342"]
[BlackFideId "386588"]
[WhiteElo "2341"]
[BlackElo "2263"]
[Result "0-1"]
[Round "08"]
[TimeControl "180+1"]
[Date "2022.09.27"]
[WhiteClock "0:00:04"]
[BlackClock "0:01:29"]

1. e4 {[%clk 0:02:08]}  f5 {[%clk 0:02:59]} 2. exf5 {[%clk 0:02:06]}  Nf6 {[%clk 0:02:59]} 3. d4 {[%clk 0:01:56]}  d5 {[%clk 0:03:00]} 4. Bd3 {[%clk 0:01:56]}  c5 {[%clk 0:03:00]} 5. c3 {[%clk 0:01:52]}  c4 {[%clk 0:03:00]} 6. Bc2 {[%clk 0:01:52]}  e6 {[%clk 0:03:01]} 7. fxe6 {[%clk 0:01:51]}  Bd6 {[%clk 0:03:02]} 8. Nf3 {[%clk 0:01:49]}  O-O {[%clk 0:03:03]} 9. O-O {[%clk 0:01:49]}  Bxe6 {[%clk 0:03:03]} 10. Bg5 {[%clk 0:01:39]}  Bg4 {[%clk 0:03:02]} 11. Nbd2 {[%clk 0:01:38]}  Nbd7 {[%clk 0:02:59]} 12. b3 {[%clk 0:01:36]}  Qc7 {[%clk 0:02:56]} 13. h3 {[%clk 0:01:32]}  cxb3 {[%clk 0:02:53]} 14. Bxb3 {[%clk 0:01:27]}  Bh5 {[%clk 0:02:49]} 15. Rc1 {[%clk 0:01:24]}  b5 {[%clk 0:02:49]} 16. c4 {[%clk 0:00:57]}  Ba3 {[%clk 0:02:34]} 17. Rc2 {[%clk 0:00:50]}  Kh8 {[%clk 0:02:24]} 18. cxd5 {[%clk 0:00:45]}  Qd6 {[%clk 0:02:24]} 19. Rc6 {[%clk 0:00:44]}  Qb4 {[%clk 0:02:22]} 20. Qc2 {[%clk 0:00:41]}  Qa5 {[%clk 0:02:16]} 21. Ne5 {[%clk 0:00:31]}  Nb6 {[%clk 0:02:05]} 22. Bxf6 {[%clk 0:00:22]}  gxf6 {[%clk 0:02:05]} 23. Ng4 {[%clk 0:00:20]}  Bg6 {[%clk 0:02:05]} 24. Qd1 {[%clk 0:00:17]}  Rad8 {[%clk 0:01:59]} 25. Nxf6 {[%clk 0:00:14]}  Be7 {[%clk 0:01:59]} 26. Nde4 {[%clk 0:00:14]}  Qb4 {[%clk 0:01:51]} 27. Qe1 {[%clk 0:00:04]}  Qxd4 {[%clk 0:01:50]} 28. Qa1 {[%clk 0:00:04]}  Qxa1 {[%clk 0:01:38]} 29. Rxa1 {[%clk 0:00:05]}  Nc4 {[%clk 0:01:39]} 30. f3 {[%clk 0:00:05]}  Na5 {[%clk 0:01:32]} 31. Re1 {[%clk 0:00:05]}  Nxc6 {[%clk 0:01:32]} 32. dxc6 {[%clk 0:00:05]}  Bxf6 {[%clk 0:01:33]} 33. c7 {[%clk 0:00:04]}  Bd4+ {[%clk 0:01:32]} 34. Kf1 {[%clk 0:00:03]}  Rc8 {[%clk 0:01:31]} 35. Rd1 {[%clk 0:00:04]}  Be5 {[%clk 0:01:29]} 0-1


[Site "https://www.chess.com"]